Cogmind - Beta 13 @@@ ROGUE MODE // 2024.04.18 @ 03:05:10 Player: Person Guy Result: Destroyed by S-43 Plague with Heavy Machine Gun Performance ------------- Evolutions (7) 3500 Regions Visited (18) 3600 Robots Destroyed (248) 1240 Value Destroyed (11529) 11529 Prototype IDs (11) 220 Alien Tech Used (0) 0 Bonus (4223) 4223 TOTAL SCORE: 24312 Bonus ------- High Alert Combat Kills 2002 Follower Combat Kills 858 Entered Garrisons 400 Used RIF Installer 1000 Aligned with FarCom 300 Friendly Fire -337 Cogmind --------- Core Integrity 0/1300 Matter 300/300 Energy 98/100 System Corruption 32% Temperature Cool (0) Movement Core (50) Location -3/Research Parts ------- > --- POWER (2) -------- (None) > --- PROPULSION (4) --- (None) > --- UTILITY (11) ----- (None) > --- WEAPON (4) ------- (None) > --- INVENTORY (5) ---- Medium Treads Improved Remote Datajack Peak State ------------ > --- POWER ------------ Antimatter Reactor Light Particle Reactor > --- PROPULSION ------- Myomer Leg Myomer Leg Myomer Leg > --- UTILITY ---------- Energy Filter Layered Heavy Armor Plating Hacking Suite Makeshift System Shield Relay Coupler [NC] Relay Coupler [NC] > --- WEAPON ----------- Thermic Laser High-powered Shotgun Hypervelocity Gauss Cannon Hypervelocity Gauss Cannon > --- INVENTORY -------- Armored Huge Wheel HERF Cannon Improved Remote Datajack [Rating: 83] Favorites ----------- Power Micro Nuclear Core Engine Deuterium Engine Power Core Micro Nuclear Core Reactor Micro Antimatter Reactor Propulsion Light Treads Treads Light Treads Leg Aluminum Leg Wheel Armored Huge Wheel Flight Unit Field Propulsion Drive Utility Hacking Suite Device Improved Heat Sink Storage Large Storage Unit Processor Improved Target Analyzer Hackware Hacking Suite Protection Improved Medium Armor Plating Weapon Flak Gun Energy Gun Quantum Rifle Energy Cannon Heavy Ion Cannon Ballistic Gun Flak Gun Ballistic Cannon Linear Accelerator Launcher Improved Grenade Launcher Special Weapon Remote Datajack Special Melee Weapon Improved Datajack Build | -11 -10 -10 -10 -9 -8 -8 -8 -7 -6 -6 -6 -5 -4 -4 -4 -4 -4 -3 ------- Run | Yrd Mat Min Exi Min Mat Gar Mat Fac Fac Gar Fac Fac Fac Was Fac Upp Upp Res Slots Evolved 14 | . . . . . 4 . . 2 2 . . 2 2 . . . . 2 Power 1 | . . . . . . . . . . . . . 1 . . . . . Propulsion 2 | . . . . . 1 . . . . . . 1 . . . . . . Utility 9 | . . . . . 2 . . 2 2 . . . 1 . . . . 2 Weapon 2 | . . . . . 1 . . . . . . 1 . . . . . . Parts Attached 237 | . 12 1 3 . 21 14 10 45 6 11 40 30 6 2 3 11 . 22 Power 24 | . 1 1 . . 2 1 2 4 . 2 3 2 . 1 . 1 . 4 Engine 9 | . 1 1 . . . . 2 2 . . 2 . . . . . . 1 Core 8 | . . . . . 2 1 . 2 . 1 . 2 . . . . . . Reactor 7 | . . . . . . . . . . 1 1 . . 1 . 1 . 3 Propulsion 49 | . 4 . . . 4 5 3 10 4 1 9 2 1 1 3 . . 2 Treads 21 | . 2 . . . 1 . 3 1 4 1 7 2 . . . . . . Leg 25 | . 2 . . . 3 5 . 9 . . 2 . . . 3 . . 1 Wheel 1 | . . . . . . . . . . . . . . . . . . 1 Hover . | . . . . . . . . . . . . . . . . . . . Flight 2 | . . . . . . . . . . . . . 1 1 . . . . Utility 76 | . 1 . 1 . 6 1 2 14 1 3 12 16 5 . . 6 . 8 Device 27 | . . . 1 . 2 1 . 5 . 3 1 7 1 . . 2 . 4 Storage 4 | . 1 . . . . . 1 . . . 1 . . . . . . 1 Processor 3 | . . . . . . . . . . . . 2 . . . 1 . . Hackware 26 | . . . . . 1 . 1 8 . . 8 1 4 . . 2 . 1 Protection 16 | . . . . . 3 . . 1 1 . 2 6 . . . 1 . 2 Artifact . | . . . . . . . . . . . . . . . . . . . Weapon 88 | . 6 . 2 . 9 7 3 17 1 5 16 10 . . . 4 . 8 Energy Gun 17 | . . . . . . . 1 3 . 1 4 2 . . . 1 . 5 Energy Cannon 7 | . . . . . . . . 1 . . 1 4 . . . . . 1 Ballistic Gun 41 | . 6 . 2 . 7 6 1 9 . 1 5 2 . . . 1 . 1 Ballistic Cannon 12 | . . . . . 1 . . 1 1 2 2 2 . . . 2 . 1 Launcher 3 | . . . . . 1 1 1 . . . . . . . . . . . Special Weapon 7 | . . . . . . . . 3 . 1 3 . . . . . . . Impact Weapon . | . . . . . . . . . . . . . . . . . . . Slashing Weapon . | . . . . . . . . . . . . . . . . . . . Piercing Weapon . | . . . . . . . . . . . . . . . . . . . Special Melee Weapon 1 | . . . . . . . . . . . 1 . . . . . . . Unidentified Prototypes 5 | . . . 1 . 1 . 1 1 . . . . . 1 . . . . Parts Lost 89 | . . 1 . . 6 6 2 8 . 2 16 15 1 . 4 . . 28 Power 11 | . . 1 . . 1 1 . 1 . 1 2 1 . . . . . 3 Propulsion 22 | . . . . . 2 1 1 3 . . 4 5 . . 1 . . 5 Utility 33 | . . . . . 3 2 1 2 . 1 4 6 1 . 3 . . 10 Weapon 23 | . . . . . . 2 . 2 . . 6 3 . . . . . 10 Highest Loss Streak 21 | . . 1 . . 5 1 1 5 . 1 3 7 1 . 2 . . 21 To Critical Strikes 1 | . . . . . . . . . . . . 1 . . . . . . Average Slot Usage (%) 77 | . 81 85 85 85 84 95 91 88 86 73 73 72 22 26 22 43 67 53 Engine 3 | . 13 14 14 14 3 . 8 3 6 . 1 . . . . . . . Core 2 | . . . . . 4 8 . 2 . . . 3 . . . . . . Reactor 1 | . . . . . . . . . . 5 3 . . . . 5 4 3 Treads 8 | . . 28 28 28 8 . 15 3 18 13 9 19 . . . . . . Leg 10 | . 25 . . . 14 26 10 19 1 . 2 . . . 1 15 15 10 Device 7 | . . . . . 5 8 9 7 6 7 11 11 4 5 3 . . 3 Storage 6 | . 14 14 14 14 9 9 9 7 6 6 5 . . . . . . 1 Hackware 11 | . . . . . 3 9 11 19 20 16 14 10 13 15 13 7 15 15 Protection 3 | . . . . . 8 6 . . 6 1 4 6 . . . . 5 2 Energy Gun 3 | . 4 . . . . . 4 7 . 5 4 3 . . . . 5 3 Energy Cannon 1 | . . . . . . . . 1 6 . 2 7 . . . . . . Ballistic Gun 11 | . 21 28 28 28 22 25 21 7 6 6 5 2 . . . . 5 3 Ballistic Cannon 2 | . . . . . 3 . . 1 5 5 2 2 . . . 10 10 5 Naked Turns 126 | . . . . . . . . . . . . 84 24 . . . . 18 Heaviest Build 80 | 12 29 31 31 31 47 47 41 47 56 61 65 71 3 3 3 65 63 80 Greatest Support 120 | 20 40 40 40 40 60 44 62 62 76 88 95 120 7 7 75 75 75 78 Greatest Overweight (x) 11 | . 7 . . . 2 1 1 11 . . 2 9 . . . . . 2 Average Overweight (x) . | . . . . . . . . . . . . . . . . . . . Largest Inventory Capacity 15 | 8 15 15 15 15 15 15 15 15 15 15 15 5 5 5 5 5 5 15 Average Capacity 12 | 8 9 15 15 15 15 15 15 15 15 15 14 5 5 5 5 5 5 8 Most Carried 15 | 6 11 10 9 7 15 15 15 15 15 15 15 5 5 3 5 5 5 10 Average Carried 9 | 6 6 7 8 7 10 10 14 12 13 13 12 4 3 2 3 2 4 4 Final Capacity 15 | 8 15 15 15 15 15 15 15 15 15 15 5 5 5 5 5 5 5 5 Final Carried 15 | 6 6 9 7 7 14 14 14 15 14 14 5 5 2 2 5 4 5 2 Class Distribution -------------------- 30% | Bothacker-Skirmisher 17% | Mutant 15% | Scavenger-Skirmisher 14% | Hacker-Skirmisher 5% | Skirmisher 5% | Hacker-Mutant 4% | Tank 3% | Hacker-Tank Dominant Class ---------------- Mutant | -10/Materials Mutant | -10/Mines Mutant | -10/Exiles Mutant | -9/Mines Scavenger-Skirmisher | -8/Materials Scavenger-Skirmisher | -8/Garrison Bothacker-Skirmisher | -8/Materials Bothacker-Skirmisher | -7/Factory Hacker-Skirmisher | -6/Factory Hacker-Skirmisher | -6/Garrison Bothacker-Skirmisher | -6/Factory Hacker-Tank | -5/Factory Hacker-Mutant | -4/Factory Hacker-Mutant | -4/Waste Hacker-Mutant | -4/Factory Mutant | -4/Upper Caves Derelict-Gunner | -4/Upper Caves Hacker-Skirmisher | -3/Research Resources | -11 -10 -10 -10 -9 -8 -8 -8 -7 -6 -6 -6 -5 -4 -4 -4 -4 -4 -3 ----------- Run | Yrd Mat Min Exi Min Mat Gar Mat Fac Fac Gar Fac Fac Fac Was Fac Upp Upp Res Matter Collected 7584 | 200 75 187 . 30 1008 848 390 1141 14 797 967 1004 . . . 330 . 593 Remotely . | . . . . . . . . . . . . . . . . . . . Salvage Created 10290 | . 174 153 . . 1325 864 478 1222 41 549 2603 1968 . . . 134 . 779 Parts 497 | . 12 10 . . 71 47 33 82 4 24 116 71 . . . 5 . 22 Haulers Intercepted 1 | . . . . . . . . . . . . . . . . . . 1 Recyclers Shooed 19 | . . . . . 5 . . 2 . . 3 7 . . . . . 2 Parts Field Recycled . | . . . . . . . . . . . . . . . . . . . Retrieved Matter . | . . . . . . . . . . . . . . . . . . . Parts Self-Destructed 4 | . . . . . . . . . . . . . . . . 4 . . Prevented . | . . . . . . . . . . . . . . . . . . . Kills | -11 -10 -10 -10 -9 -8 -8 -8 -7 -6 -6 -6 -5 -4 -4 -4 -4 -4 -3 ------- Run | Yrd Mat Min Exi Min Mat Gar Mat Fac Fac Gar Fac Fac Fac Was Fac Upp Upp Res Combat Hostiles Destroyed 183 | . 4 3 . . 26 21 15 27 1 14 39 26 . . . 2 . 5 Melee 1 | . . . . . . . . . . . . 1 . . . . . . Guns 109 | . 4 3 . . 16 21 13 16 . 7 17 8 . . . . . 4 Cannons 62 | . . . . . 6 . . 11 1 7 18 16 . . . 2 . 1 AOE 8 | . . . . . 4 . 2 . . . 2 . . . . . . . Classes Destroyed 19 | . 2 1 . . 7 2 1 . . . 3 . . . . . . 3 Worker 18 | . . 2 . . 4 . 1 3 . . 4 4 . . . . . . Builder 10 | . . . . . 1 . 1 3 . . 3 2 . . . . . . Tunneler 1 | . . . . . . . . . . . . . . . . . . 1 Hauler 1 | . . . . . . . . . . . . . . . . . . 1 Recycler 21 | . . . . . 5 . 1 2 . . 6 4 . . . . . 3 Mechanic 2 | . . . . . 1 . . . . . 1 . . . . . . . Operator 3 | . . . . . 2 . . . . . 1 . . . . . . . Watcher 8 | . 1 . . . 2 1 . . . 1 1 2 . . . . . . Swarmer 23 | . . . . . . . 5 7 . 2 5 4 . . . . . . Cutter 2 | . . . . . . 2 . . . . . . . . . . . . Saboteur 2 | . . . . . . . . . . . 1 1 . . . . . . Grunt 73 | . 4 3 . . 14 9 5 6 . 8 14 7 . . . . . 3 Brawler 2 | . . . . . . . . . . . 2 . . . . . . . Duelist 8 | . . . . . 1 . . 1 . . 3 3 . . . . . . Protector 2 | . . . . . . . . . . . 2 . . . . . . . Sentry 28 | . . . . . 9 5 3 4 . . 5 1 . . . . . 1 Specialist 1 | . . . . . . . . . . . . . . . . . . 1 Hunter 17 | . . . . . 2 . 2 2 1 4 3 1 . . . 2 . . Programmer 26 | . . . . . . 5 . 7 . . 5 9 . . . . . . Best Kill Streak 11 | . 3 2 . . 7 5 11 4 1 4 9 5 . . . 1 . 3 Combat Bots Only 8 | . 2 2 . . 5 5 8 3 1 4 5 5 . . . 1 . 2 Max Kills in Single Turn 7 | . 1 1 . . 3 2 2 2 1 1 7 3 . . . 1 . 1 Gunslinging 1 | . . . . . . . . 1 . . . . . . . . . . Exploded 2 | . . . . . 2 . 2 . . . 2 . . . . . . . Melee 1 | . . . . . . . . . . . . 1 . . . . . . Uniques/NPCs Destroyed . | . . . . . . . . . . . . . . . . . . . Combat | -11 -10 -10 -10 -9 -8 -8 -8 -7 -6 -6 -6 -5 -4 -4 -4 -4 -4 -3 -------- Run | Yrd Mat Min Exi Min Mat Gar Mat Fac Fac Gar Fac Fac Fac Was Fac Upp Upp Res Hostile Shots Fired 1612 | . 12 21 . . 104 77 64 197 . 138 387 230 10 1 63 12 46 250 Missed 491 | . 3 7 . . 32 17 16 71 . 38 135 54 7 1 25 5 18 62 Damage Taken 20706 | . 110 185 . . 1307 1198 712 1755 . 1741 3982 3549 47 20 839 119 583 4559 Core 3929 | . . 10 . . 64 93 130 215 . 242 498 680 14 . 587 . 78 1318 Absorbed by Shields . | . . . . . . . . . . . . . . . . . . . Redirected to Shielding 105 | . . . . . 105 . . . . . . . . . . . . . Ignored by Resistances 32 | . . . . . . . . . . . . 32 . . . . . . Core Remaining (%) 56 | 100 . . . 96 . . 47 69 . . 12 32 . . . . 40 . Volleys Fired 625 | . 11 11 . . 61 84 30 79 4 69 143 78 . . . 6 4 45 Largest 4 | . 2 2 . . 3 3 3 3 3 3 3 4 . . . 2 4 4 Hottest 303 | . 70 46 . . 108 84 124 156 161 200 228 303 . . . 122 232 276 Shots Fired 1521 | . 21 22 . . 174 159 90 178 12 159 308 254 . . . 13 14 117 Gun 1021 | . 21 22 . . 125 155 85 126 4 99 189 104 . . . . 7 84 Cannon 454 | . . . . . 46 . . 41 8 59 97 150 . . . 13 7 33 Launcher 12 | . . . . . 3 4 5 . . . . . . . . . . . Special 34 | . . . . . . . . 11 . 1 22 . . . . . . . Kinetic 914 | . 14 22 . . 171 155 57 93 8 90 132 85 . . . 13 10 64 Thermal 549 | . 7 . . . . . 28 74 4 68 144 169 . . . . 4 51 Explosive 12 | . . . . . 3 4 5 . . . . . . . . . . . Electromagnetic 12 | . . . . . . . . . . . 10 . . . . . . 2 Robot Hit Streak 16 | . 5 4 . . 14 11 9 8 8 8 16 14 . . . 4 2 12 Robot Miss Streak 14 | . 2 2 . . 9 10 14 13 4 5 8 5 . . . 1 5 5 Penetration Max 1 | . . . . . . 1 . . . . 1 1 . . . . . 1 Secondary Targets 10 | . 1 . . . . 3 3 1 . . 1 . . . . . . 1 Max Gunslinging Chain 1 | . 1 . . . . 1 1 1 . . 1 . . . . . . 1 Shots Hit Robots 958 | . 12 16 . . 130 78 58 113 9 83 213 147 . . . 7 6 86 Core Hits 712 | . 8 5 . . 160 83 58 85 10 53 143 65 . . 1 2 3 36 Critical Kills 9 | . . . . . . . . 1 . . 1 1 . . . 2 . 4 Critical Parts Destroyed 24 | . . . . . . 1 . . . 5 7 2 . . . 3 . 6 Critical Strikes 55 | . . . . . . 1 3 6 . 6 15 8 . . . 5 1 10 Burn 15 | . . . . . . . 3 3 . . 4 4 . . . . 1 . Meltdown 1 | . . . . . . . . . . . . 1 . . . . . . Destroy 32 | . . . . . . 1 . 1 . 5 8 2 . . . 5 . 10 Blast 7 | . . . . . . . . 2 . 1 3 1 . . . . . . Melee Attacks 4 | . . . . . . . . . . . 4 . . . . . . . Impact . | . . . . . . . . . . . . . . . . . . . Slashing . | . . . . . . . . . . . . . . . . . . . Piercing . | . . . . . . . . . . . . . . . . . . . Sneak Attacks 1 | . . . . . . . . . . . 1 . . . . . . . Combat Hostiles 1 | . . . . . . . . . . . 1 . . . . . . . Follow-up Attacks . | . . . . . . . . . . . . . . . . . . . Damage Inflicted 23902 | . 180 264 . . 2977 1535 1220 2331 157 1897 6255 4765 . . 8 89 99 2125 Guns 13312 | . 180 256 . . 1626 1535 915 1573 58 877 3060 1493 . . . . 49 1690 Cannons 8461 | . . . . . 860 . . 683 99 1020 2258 3003 . . . 89 50 399 Explosions 1978 | . . . . . 473 . 305 75 . . 898 227 . . . . . . Melee . | . . . . . . . . . . . . . . . . . . . Ramming 151 | . . 8 . . 18 . . . . . 39 42 . . 8 . . 36 Kinetic 12229 | . 115 256 . . 2486 1535 642 1207 133 1096 2317 1336 . . . 89 81 936 Thermal 10557 | . 65 . . . . . 273 1049 24 801 3829 3387 . . . . 18 1111 Explosive 816 | . . . . . 436 . 305 75 . . . . . . . . . . Electromagnetic 149 | . . . . . 37 . . . . . 70 . . . . . . 42 Impact . | . . . . . . . . . . . . . . . . . . . Slashing . | . . . . . . . . . . . . . . . . . . . Piercing . | . . . . . . . . . . . . . . . . . . . Highest Corruption 31 | . . . . . . 2 2 5 . . 3 13 . 18 23 23 19 31 Average Corruption 6 | . . . . . . 1 2 1 . . 1 10 . 12 18 22 19 15 Corruption Purged 9 | . . . . . . . . 5 . . . . . . . 4 . . Corruption Blocked . | . . . . . . . . . . . . . . . . . . . Effects 217 | . . . . . . 11 3 45 . . 20 65 . 7 15 23 8 20 Message Errors 50 | . . . . . . 2 2 11 . . . 15 . 1 5 9 2 3 Matter Fused 50 | . . . . . . 1 . 16 . . 6 11 . 1 3 2 2 8 Heat Flow Errors 30 | . . . . . . 2 . 6 . . 3 11 . 1 1 4 1 1 Energy Discharges 18 | . . . . . . . . 3 . . 3 4 . 1 2 3 . 2 Parts Rejected 7 | . . . . . . 2 . . . . 1 2 . 1 . . 1 . Parts Fused 2 | . . . . . . . . 1 . . . 1 . . . . . . Data Loss (minor) 26 | . . . . . . 3 1 5 . . 6 5 . 1 2 1 . 2 Data Loss (major) 3 | . . . . . . . . . . . . . . . 1 1 1 . Misfires 12 | . . . . . . 1 . 2 . . 1 5 . . . 2 . 1 Alerts 4 | . . . . . . . . 1 . . . 2 . . . . . 1 Misdirections 6 | . . . . . . . . . . . . 3 . 1 1 . . 1 Weapon Failures 9 | . . . . . . . . . . . . 6 . . . 1 1 1 Overload Shots . | . . . . . . . . . . . . . . . . . . . Overflow Damage 515 | . . . . . 16 1 . 6 . 13 188 291 . . . . . . Projectiles 285 | . . . . . . . . 6 . 13 51 215 . . . . . . Explosions 230 | . . . . . 16 1 . . . . 137 76 . . . . . . Melee . | . . . . . . . . . . . . . . . . . . . Knockbacks 75 | . . . . . 30 . . 4 3 17 8 8 . . . 1 1 3 Impact 1 | . . . . . . . . . . . . 1 . . . . . . Kinetic 69 | . . . . . 27 . . 4 3 17 7 6 . . . 1 1 3 Secondary 5 | . . . . . 3 . . . . . 1 1 . . . . . . Self-Inflicted Damage 450 | . . . . . 107 53 33 . . . 227 14 . . . . . 16 Shots 8 | . . . . . 2 2 1 . . . 3 . . . . . . . Rammed 28 | . . . . . 2 . . . . . 5 9 . . 1 . . 11 Targets Rammed 35 | . . 1 . . 2 . . . . . 9 9 . . 3 . . 11 Kicked 6 | . . . . . . . . . . . 4 . . . 2 . . . Crushed 1 | . . 1 . . . . . . . . . . . . . . . . Highest Temperature 505 | . 72 49 . . 222 263 90 238 115 199 216 505 . 99 88 259 460 432 Average Temperature 99 | . 24 12 . . 71 74 28 46 59 106 24 171 . 59 49 74 181 151 Received Heat Transfer 4418 | . 63 105 . . 486 369 180 261 . 447 1116 762 . . 69 . 150 410 Effects 13 | . . . . . . . . . . . . 8 . . . . 2 3 Shutdowns 3 | . . . . . . . . . . . . 1 . . . . 1 1 Energy Bleed 1 | . . . . . . . . . . . . 1 . . . . . . Interference 5 | . . . . . . . . . . . . 3 . . . . . 2 Matter Decay 1 | . . . . . . . . . . . . 1 . . . . . . Short Circuit 2 | . . . . . . . . . . . . 1 . . . . 1 . Damage (minor) 1 | . . . . . . . . . . . . 1 . . . . . . Siege Activations . | . . . . . . . . . . . . . . . . . . . Robots Corrupted . | . . . . . . . . . . . . . . . . . . . Combat Hostiles . | . . . . . . . . . . . . . . . . . . . Parts Fried . | . . . . . . . . . . . . . . . . . . . Impact Corruptions . | . . . . . . . . . . . . . . . . . . . Robots Melted 3 | . . . . . . . . . . . 2 1 . . . . . . Combat Hostiles 3 | . . . . . . . . . . . 2 1 . . . . . . Parts Melted 37 | . . . . . . . . 1 . 3 15 17 . . . . . 1 Heat Transferred 15607 | . 185 . . . . . 814 1879 50 1100 4885 5049 . . . . 150 1495 Parts Sabotaged 6 | . . . . . . . . . . . 2 4 . . . . . . Parts Stolen . | . . . . . . . . . . . . . . . . . . . Parts Stripped . | . . . . . . . . . . . . . . . . . . . Power Chain Reactions . | . . . . . . . . . . . . . . . . . . . Alert | -11 -10 -10 -10 -9 -8 -8 -8 -7 -6 -6 -6 -5 -4 -4 -4 -4 -4 -3 ------- Run | Yrd Mat Min Exi Min Mat Gar Mat Fac Fac Gar Fac Fac Fac Was Fac Upp Upp Res Peak Influence 1469 | . 127 104 . . 466 1469 1020 469 214 1000 1315 844 450 199 229 . . 50 Initial 715 | . . 7 . . . 240 715 455 161 149 525 345 420 154 139 . . . Average 437 | . 73 54 . . 215 674 809 279 171 551 825 460 421 165 170 . . 10 Maximum Alert Level 4 | . . . . . 2 4 3 2 1 3 4 3 2 . 1 . . . Low Security (%) 21 | 100 100 100 . 100 39 . . 4 90 3 . 3 . 100 90 . . 100 Level 1 32 | . . . . . 53 16 . 91 9 29 1 32 . . 9 . . . Level 2 26 | . . . . . 6 52 . 4 . 37 38 57 100 . . . . . Level 3 14 | . . . . . . 15 100 . . 30 43 6 . . . . . . Level 4 4 | . . . . . . 16 . . . . 16 . . . . . . . Level 5 . | . . . . . . . . . . . . . . . . . . . High Security . | . . . . . . . . . . . . . . . . . . . Max Security . | . . . . . . . . . . . . . . . . . . . Squads Dispatched 66 | . 1 2 . . 8 . 2 15 . . 25 9 . . 1 . . 3 Investigation 6 | . 1 1 . . . . 1 2 . . 1 . . . . . . . Extermination 16 | . . . . . . . . 8 . . 3 3 . . . . . 2 Reinforcement 15 | . . . . . 3 . 1 2 . . 5 2 . . 1 . . 1 Assault 11 | . . 1 . . . . . . . . 6 4 . . . . . . Garrison 18 | . . . . . 5 . . 3 . . 10 . . . . . . . Intercept . | . . . . . . . . . . . . . . . . . . . Searches Triggered . | . . . . . . . . . . . . . . . . . . . Construction Impeded 3 | . . . . . . . . 1 . . . 2 . . . . . . Haulers Reinforced . | . . . . . . . . . . . . . . . . . . . Active Scanning Responses . | . . . . . . . . . . . . . . . . . . . Cargo Convoy Interrupts . | . . . . . . . . . . . . . . . . . . . Stealth | -11 -10 -10 -10 -9 -8 -8 -8 -7 -6 -6 -6 -5 -4 -4 -4 -4 -4 -3 --------- Run | Yrd Mat Min Exi Min Mat Gar Mat Fac Fac Gar Fac Fac Fac Was Fac Upp Upp Res Distress Signals 19 | . 2 . . . 3 . 4 1 . 2 3 1 1 . . . . 2 Communications Jammed . | . . . . . . . . . . . . . . . . . . . Distress Signals . | . . . . . . . . . . . . . . . . . . . Times Spotted 365 | . 8 9 . . 43 25 18 40 2 26 85 56 4 6 10 1 4 28 Peak Tracking Total 17 | . 3 4 . . 6 5 9 6 1 5 7 9 5 6 8 1 4 17 Tactical Retreats 17 | . . . . . 1 1 . . . 3 2 6 1 . 2 . . 1 Traps | -11 -10 -10 -10 -9 -8 -8 -8 -7 -6 -6 -6 -5 -4 -4 -4 -4 -4 -3 ------- Run | Yrd Mat Min Exi Min Mat Gar Mat Fac Fac Gar Fac Fac Fac Was Fac Upp Upp Res Traps Triggered 23 | . 5 . . . . 4 1 6 1 . 1 2 1 . 1 . . 1 Indirectly . | . . . . . . . . . . . . . . . . . . . Trap Hack Attempts . | . . . . . . . . . . . . . . . . . . . Triggered . | . . . . . . . . . . . . . . . . . . . Disarmed . | . . . . . . . . . . . . . . . . . . . Reprogrammed 6 | . . . . . . . . . . . 6 . . . . . . . Reused 3 | . . . . . . . . . . 3 . . . . . . . . Traps Extracted . | . . . . . . . . . . . . . . . . . . . Installed 10 | . . . . . . . . . . 10 . . . . . . . . Triggered 3 | . . . . . . . . . . 3 . . . . . . . . Most Traps Carried 4 | . . . . . . . . . . 4 . . . . . . . . Machines | -11 -10 -10 -10 -9 -8 -8 -8 -7 -6 -6 -6 -5 -4 -4 -4 -4 -4 -3 ---------- Run | Yrd Mat Min Exi Min Mat Gar Mat Fac Fac Gar Fac Fac Fac Was Fac Upp Upp Res Machines Disabled 48 | . . . . . 5 6 1 4 . 7 13 12 . . . . . . Max in Single Turn 6 | . . . . . 2 1 1 1 . 1 6 6 . . . . . . Garrison Access 2 | . . . . . . . . . . . 2 . . . . . . . Garrison Relay 8 | . . . . . . 6 . . . 2 . . . . . . . . Machines Repaired . | . . . . . . . . . . . . . . . . . . . Machines Dismantled . | . . . . . . . . . . . . . . . . . . . Machines Sabotaged . | . . . . . . . . . . . . . . . . . . . Overloaded Fab Kills . | . . . . . . . . . . . . . . . . . . . Hacking | -11 -10 -10 -10 -9 -8 -8 -8 -7 -6 -6 -6 -5 -4 -4 -4 -4 -4 -3 --------- Run | Yrd Mat Min Exi Min Mat Gar Mat Fac Fac Gar Fac Fac Fac Was Fac Upp Upp Res Machines Accessed 45 | . 2 1 . . 6 3 1 14 2 2 6 6 1 . . . . 1 Terminals 38 | . 2 . . . 5 3 1 13 1 2 4 6 . . . . . 1 Fabricators . | . . . . . . . . . . . . . . . . . . . Repair Stations . | . . . . . . . . . . . . . . . . . . . Recycling Units 1 | . . . . . . . . . . . . . 1 . . . . . Scanalyzers . | . . . . . . . . . . . . . . . . . . . Garrison Access 5 | . . . . . 1 . . 1 1 . 2 . . . . . . . Total Hacks 103 | . 7 1 . . 14 5 4 36 3 3 14 11 1 . . . . 4 Successful 39 | . 3 1 . . 7 3 2 10 2 1 5 3 1 . . . . 1 Failed 63 | . 4 . . . 6 2 2 26 1 2 9 8 . . . . . 3 Catastrophic 15 | . 1 . . . 2 . . 6 1 1 1 2 . . . . . 1 Database Lockouts 1 | . . . . . 1 . . . . . . . . . . . . . Manual 41 | . 4 . 1 . 5 . 4 18 . . 6 3 . . . . . . Terminals 93 | . 7 . . . 13 5 4 34 2 3 10 11 . . . . . 4 Fabricators . | . . . . . . . . . . . . . . . . . . . Repair Stations . | . . . . . . . . . . . . . . . . . . . Recycling Units 1 | . . . . . . . . . . . . . 1 . . . . . Scanalyzers . | . . . . . . . . . . . . . . . . . . . Garrison Access 8 | . . . . . 1 . . 2 1 . 4 . . . . . . . Terminal Hacks 28 | . 3 1 . . 6 3 1 7 1 1 2 2 . . . . . 1 Record 1 | . . . . . . . . 1 . . . . . . . . . . Prototype ID Bank 3 | . 1 . . . 2 . . . . . . . . . . . . . Open Door 1 | . . 1 . . . . . . . . . . . . . . . . Open DSF 1 | . . . . . . . . . . . . 1 . . . . . . Level Access Points 2 | . . . . . . . 1 . . . 1 . . . . . . . Branch Access Points 3 | . 1 . . . 1 . . 1 . . . . . . . . . . Emergency Access Points 1 | . . . . . . 1 . . . . . . . . . . . . Machine Index 1 | . . . . . . . . . 1 . . . . . . . . . Terminal Index 2 | . . . . . . . . 1 . . . . . . . . . 1 Alert Level 2 | . 1 . . . 1 . . . . . . . . . . . . . Unreport Threat 3 | . . . . . 1 . . 2 . . . . . . . . . . Locate Traps 1 | . . . . . . . . 1 . . . . . . . . . . Reprogram Traps 1 | . . . . . . . . . . . 1 . . . . . . . Transport Status 1 | . . . . . . . . . . . . 1 . . . . . . Registered Components 1 | . . . . . 1 . . . . . . . . . . . . . Registered Prototypes 1 | . . . . . . . . 1 . . . . . . . . . . Garrison Registry 1 | . . . . . . . . . . 1 . . . . . . . . Patrol Navigation 1 | . . . . . . 1 . . . . . . . . . . . . Security Stations 1 | . . . . . . 1 . . . . . . . . . . . . Fabricator Hacks . | . . . . . . . . . . . . . . . . . . . Repair Station Hacks . | . . . . . . . . . . . . . . . . . . . Recycling Unit Hacks 1 | . . . . . . . . . . . . . 1 . . . . . Retrieve Components 1 | . . . . . . . . . . . . . 1 . . . . . Scanalyzer . | . . . . . . . . . . . . . . . . . . . Garrison Access Hacks 4 | . . . . . 1 . . . 1 . 2 . . . . . . . Unlock Access 2 | . . . . . 1 . . . 1 . . . . . . . . . Seal Access 2 | . . . . . . . . . . . 2 . . . . . . . Unauthorized Hacks 6 | . . . . . . . 1 3 . . 1 1 . . . . . . Terminals 5 | . . . . . . . 1 2 . . 1 1 . . . . . . Operators 5 | . . . . . . . 1 2 . . 1 1 . . . . . . Fabricators . | . . . . . . . . . . . . . . . . . . . Repair Stations . | . . . . . . . . . . . . . . . . . . . Recycling Units . | . . . . . . . . . . . . . . . . . . . Scanalyzers . | . . . . . . . . . . . . . . . . . . . Garrison Access 1 | . . . . . . . . 1 . . . . . . . . . . Reprogram 1 | . . . . . . . . 1 . . . . . . . . . . Data Cores Recovered . | . . . . . . . . . . . . . . . . . . . Used . | . . . . . . . . . . . . . . . . . . . Hacking Detections 35 | . 2 . . . 4 2 . 14 1 1 5 5 . . . . . 1 Full Trace Events 1 | . . . . . . . . . . . 1 . . . . . . . Feedback Events . | . . . . . . . . . . . . . . . . . . . Feedback Blocked . | . . . . . . . . . . . . . . . . . . . Robot Schematics Acquired . | . . . . . . . . . . . . . . . . . . . Robots Built . | . . . . . . . . . . . . . . . . . . . Authchips . | . . . . . . . . . . . . . . . . . . . Time . | . . . . . . . . . . . . . . . . . . . Total Robot Build Rating . | . . . . . . . . . . . . . . . . . . . Part Schematics Acquired . | . . . . . . . . . . . . . . . . . . . Parts Built . | . . . . . . . . . . . . . . . . . . . Authchips . | . . . . . . . . . . . . . . . . . . . Time . | . . . . . . . . . . . . . . . . . . . Total Part Build Rating . | . . . . . . . . . . . . . . . . . . . Parts Repaired . | . . . . . . . . . . . . . . . . . . . Time . | . . . . . . . . . . . . . . . . . . . Parts Recycled . | . . . . . . . . . . . . . . . . . . . Recycled Matter . | . . . . . . . . . . . . . . . . . . . Retrieved Matter . | . . . . . . . . . . . . . . . . . . . Retrieved Components . | . . . . . . . . . . . . . . . . . . . Parts Scanalyzed . | . . . . . . . . . . . . . . . . . . . Part Schematics Acquired . | . . . . . . . . . . . . . . . . . . . Parts Damaged . | . . . . . . . . . . . . . . . . . . . Bothacking | -11 -10 -10 -10 -9 -8 -8 -8 -7 -6 -6 -6 -5 -4 -4 -4 -4 -4 -3 ------------ Run | Yrd Mat Min Exi Min Mat Gar Mat Fac Fac Gar Fac Fac Fac Was Fac Upp Upp Res Used RIF Installer 2 | . . . . . . 1 . . . 1 . . . . . . . . Patrol Navigation 1 | . . . . . . . . . . 1 . . . . . . . . Robots Hacked 24 | . . . . . . . . 10 . 1 13 . . . . . . . Non-combat 2 | . . . . . . . . . . . 2 . . . . . . . Combat 22 | . . . . . . . . 10 . 1 11 . . . . . . . Robot Hacks Applied 34 | . . . . . . . . 10 . 1 23 . . . . . . . parse_system 1 | . . . . . . . . 1 . . . . . . . . . . ignore_repairs 1 | . . . . . . . . . . . 1 . . . . . . . purge_threat 7 | . . . . . . . . . . . 7 . . . . . . . reboot_system 1 | . . . . . . . . . . 1 . . . . . . . . overwrite_iff 16 | . . . . . . . . 3 . . 13 . . . . . . . formatsys_high 8 | . . . . . . . . 6 . . 2 . . . . . . . Relay Couplers Released 38 | . . . . . . 25 . . . 9 4 . . . . . . . Machine Destruction 34 | . . . . . . 25 . . . 9 . . . . . . . . Programmers 4 | . . . . . . . . . . . 4 . . . . . . . Attached 17 | . . . . . . . . 7 . . 8 . 1 . . . . 1 Fabnet Peak Effective % . | . . . . . . . . . . . . . . . . . . . Robots Rewired 6 | . . . . . . 6 . . . . . . . . . . . . Allies Hacked 1 | . . . . . . . . 1 . . . . . . . . . . Hacks Repelled . | . . . . . . . . . . . . . . . . . . . Allies | -11 -10 -10 -10 -9 -8 -8 -8 -7 -6 -6 -6 -5 -4 -4 -4 -4 -4 -3 -------- Run | Yrd Mat Min Exi Min Mat Gar Mat Fac Fac Gar Fac Fac Fac Was Fac Upp Upp Res Total Allies 42 | . . 3 . 3 . 6 . 11 3 2 11 3 . . . . . . Largest Group 6 | . . 3 3 4 4 6 . 3 3 3 2 3 . . . . . . Highest-Rated Group 124 | . . 77 77 71 71 90 . 53 93 124 76 93 . . . . . . Highest-Rated Ally 62 | . . 31 31 31 31 15 . 32 31 62 62 31 . . . . . . Total Orders . | . . . . . . . . . . . . . . . . . . . Ally Attacks 187 | . . 19 . . 22 14 . 46 3 26 57 . . . . . . . Total Damage 3621 | . . 302 . . 206 300 . 858 41 613 1301 . . . . . . . Kills 34 | . . 5 . . 1 4 . 5 1 8 10 . . . . . . . Allies Corrupted 2 | . . . . . . . . . . . . 2 . . . . . . Allies Melted 1 | . . . . . . . . 1 . . . . . . . . . . Intel | -11 -10 -10 -10 -9 -8 -8 -8 -7 -6 -6 -6 -5 -4 -4 -4 -4 -4 -3 ------- Run | Yrd Mat Min Exi Min Mat Gar Mat Fac Fac Gar Fac Fac Fac Was Fac Upp Upp Res Robot Analysis Total . | . . . . . . . . . . . . . . . . . . . Derelict Logs Recovered 1 | . . 1 . . . . . . . . . . . . . . . . Drone Launches . | . . . . . . . . . . . . . . . . . . . Drone Recoveries . | . . . . . . . . . . . . . . . . . . . Exploration | -11 -10 -10 -10 -9 -8 -8 -8 -7 -6 -6 -6 -5 -4 -4 -4 -4 -4 -3 ------------- Run | Yrd Mat Min Exi Min Mat Gar Mat Fac Fac Gar Fac Fac Fac Was Fac Upp Upp Res Turns Passed 20231 | 8 501 996 362 168 1794 2399 461 3923 321 1722 3123 2262 331 168 290 482 132 788 Spaces Moved 11429 | 7 331 589 223 103 603 1126 197 2427 188 803 1295 1549 288 271 543 369 92 425 Core 1259 | . 1 . . . . . . 1 . . 182 734 45 . 152 . . 144 Treads 4364 | . 3 589 223 103 310 . 113 340 167 803 898 815 . . . . . . Legs 4909 | 7 327 . . . 293 1126 84 2086 21 . 215 . . . 14 369 92 275 Wheels 6 | . . . . . . . . . . . . . . . . . . 6 Hover . | . . . . . . . . . . . . . . . . . . . Flight 891 | . . . . . . . . . . . . . 243 271 377 . . . Fastest Speed 45 | 120 120 160 160 160 123 123 123 123 126 160 50 50 45 45 45 120 120 50 Average Speed 135 | 120 131 160 160 160 181 169 170 139 156 164 161 109 45 45 48 120 120 100 Slowest Speed 600 | 120 400 160 160 160 270 196 195 600 160 165 260 500 50 45 120 120 120 190 Overloaded Moves . | . . . . . . . . . . . . . . . . . . . Propulsion Burnouts . | . . . . . . . . . . . . . . . . . . . Robots Hopped 6 | . . . . . . . . . . . . . 3 . 3 . . . Cave-ins Triggered . | . . . . . . . . . . . . . . . . . . . Exploration Rate (%) 42 | 2 57 94 61 23 54 94 25 61 7 55 30 29 8 98 13 68 18 13 Regions Visited 18 Branch Regions 5 Pre-discovered Areas . | . . . . . . . . . . . . . . . . . . . Known Exits Taken 5 | . 1 . . . 1 . 1 . 1 . 1 . . . . . . . Unknown Exits Taken 9 | 1 . 1 1 1 . . . 1 . . . 1 . . 1 1 1 . Scrap Searched 6 | . . 1 . 1 . . . . . . . . . . . 4 . . Spaces Dug . | . . . . . . . . . . . . . . . . . . . Terrain Destroyed 253 | . . . . . 27 24 35 19 . 9 94 44 . . . 1 . . Melee . | . . . . . . . . . . . . . . . . . . . Projectile 70 | . . . . . 1 1 . 11 . 9 17 30 . . . 1 . . AOE 183 | . . . . . 26 23 35 8 . . 77 14 . . . . . . Terrain Rammed . | . . . . . . . . . . . . . . . . . . . Walls Destroyed . | . . . . . . . . . . . . . . . . . . . Machines Disabled . | . . . . . . . . . . . . . . . . . . . Actions | -11 -10 -10 -10 -9 -8 -8 -8 -7 -6 -6 -6 -5 -4 -4 -4 -4 -4 -3 --------- Run | Yrd Mat Min Exi Min Mat Gar Mat Fac Fac Gar Fac Fac Fac Was Fac Upp Upp Res Total 14994 | 6 381 625 230 106 1179 1496 257 2823 211 1097 2071 1953 485 316 567 397 104 690 Wait 2163 | . 2 20 1 4 446 199 4 185 1 138 523 228 189 41 16 . 8 158 Move 11401 | 6 330 588 222 102 603 1125 196 2426 187 802 1294 1548 282 270 536 368 91 425 Hop 6 | . . . . . . . . . . . . . 3 . 3 . . . Pick Up 294 | . 17 4 1 . 32 24 9 48 6 33 37 38 4 2 6 10 1 22 Fast Attach . | . . . . . . . . . . . . . . . . . . . Attach 211 | . 11 1 3 . 16 14 8 38 6 9 34 27 6 2 3 11 . 22 Detach 9 | . . . . . . 2 1 2 . . 2 1 . . . . . 1 Swap 26 | . 1 . . . 5 . 2 7 . 2 6 3 . . . . . . Drop 173 | . 9 . 3 . 14 17 7 32 7 34 19 21 1 1 . 2 . 6 Fire 625 | . 11 11 . . 61 84 30 79 4 69 143 78 . . . 6 4 45 Melee 4 | . . . . . . . . . . . 4 . . . . . . . Ram 21 | . . . . . . . . . . . 3 6 . . 1 . . 11 Kick 6 | . . . . . . . . . . . 4 . . . 2 . . . Crush 8 | . . 1 . . 2 . . . . . 2 3 . . . . . . Escape Stasis . | . . . . . . . . . . . . . . . . . . . Rewire 37 | . . . . . . 31 . 6 . . . . . . . . . . Trap 10 | . . . . . . . . . . 10 . . . . . . . . Miscellaneous . | . . . . . . . . . . . . . . . . . . . Route ------- -11/Scrapyard -10/Materials (discovered 3 exits: [*Mat] / *Min x2) -10/Mines (discovered 3 exits: [*Mat x2] / *Exi) -10/Exiles (discovered 2 exits: [*Min x2]) -9/Mines -8/Materials (discovered 3 exits: *Fac / *Sto / Gar) -8/Garrison (discovered 3 exits: *Mat x3) -8/Materials (discovered 3 exits: *Fac x3) -7/Factory (discovered 4 exits: *Fac x2 / Low x2) -6/Factory -6/Garrison (discovered 3 exits: *Fac x3) -6/Factory (discovered 4 exits: *Fac x4) -5/Factory (discovered 2 exits: *Fac / *Upp) -4/Factory -4/Waste -4/Factory -4/Upper Caves -4/Upper Caves -3/Research History --------- Turn | Location | Event 1 | -11/Scrapyard | Discovered new exit (range 3) 9 | -11/Scrapyard | Entered Materials 110 | -10/Materials | Discovered new exit (range 6) 210 | -10/Materials | Discovered new exit (range 12) 247 | -10/Materials | Identified exit to Mines 314 | -10/Materials | Build established: Mutant 510 | -10/Materials | Entered Mines 666 | -10/Mines | Met a Derelict testing a Signal Generator 708 | -10/Mines | Received a Rocket Launcher from a helpful Derelict 794 | -10/Mines | Found a damaged Exp. Sensor Array with a note attached 808 | -10/Mines | Discovered new exit (range 5) 1009 | -10/Mines | Discovered new exit (range 10) 1183 | -10/Mines | Learned Materials trap positions 1209 | -10/Mines | Met a Derelict shopkeep closing up shop 1496 | -10/Mines | Deemed a non-threat by the Exiles lab entrance 1498 | -10/Mines | Discovered new exit (range 5) 1506 | -10/Mines | Entered Exiles 1506 | -10/Exiles | Accompanied by 3 allies 1530 | -10/Exiles | Discovered new exit (range 15) 1536 | -10/Exiles | Led the pair of lost Derelicts to a safe place 1550 | -10/Exiles | Met 8R-AWN 1572 | -10/Exiles | Met EX-HEX 1622 | -10/Exiles | Met EX-BIN 1652 | -10/Exiles | Aligned with FarCom system 1654 | -10/Exiles | Given EX-Vault access code 1694 | -10/Exiles | Opened EX-Vault 1705 | -10/Exiles | Found Prototype Device 1706 | -10/Exiles | Identified Chronowheel 1706 | -10/Exiles | Activated Chronowheel 1739 | -10/Exiles | Warned to stay clear of 0b10 Research branches 1795 | -10/Exiles | Met EX-DEC 1853 | -10/Exiles | Discovered new exit (range 10) 1868 | -10/Exiles | Entered Mines 1868 | -9/Mines | Accompanied by 1 ally 1878 | -9/Mines | Assisted by bots powering up and referring to "LRC-V3" 1995 | -9/Mines | Discovered new exit (range 5) 2036 | -9/Mines | Entered Materials 2036 | -8/Materials | Accompanied by 4 allies 2036 | -8/Materials | Evolved 4 slots: Propulsion x1, Utility x2, Weapon x1 2037 | -8/Materials | Loaded intel: 5 trap records 2086 | -8/Materials | Identified exit to Storage 2086 | -8/Materials | Central database locked down 2316 | -8/Materials | Lost 4 allies 2549 | -8/Materials | Build established: Tank 2805 | -8/Materials | Lost 5 parts (1p2n2u) 3193 | -8/Materials | Garrison activated, responded to threat 3206 | -8/Materials | Discovered new exit (range 16) 3237 | -8/Materials | Build established: Scavenger-Skirmisher 3679 | -8/Materials | Garrison activated, responded to threat 3830 | -8/Materials | Identified exit to Garrison 3830 | -8/Materials | Entered Garrison 3966 | -8/Garrison | Triggered checkpoint 3968 | -8/Garrison | Triggered checkpoint 4006 | -8/Garrison | Lost 3 allies 4024 | -8/Garrison | Triggered checkpoint 4059 | -8/Garrison | Discovered new exit (range 13) 4090 | -8/Garrison | Triggered checkpoint 4138 | -8/Garrison | Lost 3 allies 4180 | -8/Garrison | Garrison Relay disabled 4327 | -8/Garrison | Garrison Relay disabled 4835 | -8/Garrison | Triggered checkpoint 5184 | -8/Garrison | Garrison Relay disabled 5216 | -8/Garrison | Discovered new exit (range 10) 5326 | -8/Garrison | Triggered checkpoint 5540 | -8/Garrison | Discovered new exit (range 12) 5550 | -8/Garrison | Installed Relay Interface Framework 5575 | -8/Garrison | Learned Materials security intel 5614 | -8/Garrison | Triggered checkpoint 5672 | -8/Garrison | Garrison Relay disabled 5832 | -8/Garrison | Triggered checkpoint 5840 | -8/Garrison | Garrison Relay disabled 5986 | -8/Garrison | Triggered checkpoint 6003 | -8/Garrison | Garrison Relay disabled 6229 | -8/Garrison | Entered Materials 6329 | -8/Materials | Identified exit to Factory 6496 | -8/Materials | Build established: Bothacker-Skirmisher 6618 | -8/Materials | Destroyed 8 combat bots 6655 | -8/Materials | Core integrity fell below 50% 6690 | -8/Materials | Entered Factory 6690 | -7/Factory | Evolved 2 slots: Utility x2 7373 | -7/Factory | Lost 5 parts (1p2n1u1w) 8078 | -7/Factory | P-60 Hacker assimilated allied Commando 4a 8320 | -7/Factory | Garrison activated, responded to threat 8617 | -7/Factory | Discovered new exit (range 15) 9776 | -7/Factory | Identified exit to Lower Caves 9880 | -7/Factory | Build established: Hacker-Skirmisher 10228 | -7/Factory | Discovered new exit (range 14) 10613 | -7/Factory | Entered another Factory area 10613 | -6/Factory | Evolved 2 slots: Utility x2 10883 | -6/Factory | Allied Derelicts emerged from ambush trap array 10928 | -6/Factory | Identified exit to Garrison 10934 | -6/Factory | Entered Garrison 10934 | -6/Garrison | Accompanied by 3 allies 10944 | -6/Garrison | Discovered new exit (range 41) 10944 | -6/Garrison | Discovered new exit (range 70) 10944 | -6/Garrison | Discovered new exit (range 67) 10978 | -6/Garrison | Triggered checkpoint 11749 | -6/Garrison | Triggered checkpoint 11978 | -6/Garrison | Triggered checkpoint 12091 | -6/Garrison | Build established: Skirmisher 12110 | -6/Garrison | Garrison Relay disabled 12164 | -6/Garrison | Garrison Relay disabled 12390 | -6/Garrison | Found embedded Infiltrators 12424 | -6/Garrison | Build established: Bothacker-Skirmisher 12624 | -6/Garrison | Expanded RIF knowledge: Patrol Navigation 12656 | -6/Garrison | Entered Factory 12656 | -6/Factory | Accompanied by 1 ally 13006 | -6/Factory | First assault squad dispatched 13092 | -6/Factory | Garrison activated, responded to threat 13548 | -6/Factory | Lost 3 parts (1n2w) 13824 | -6/Factory | Build established: Skirmisher 13933 | -6/Factory | Garrison activated, responded to threat 13945 | -6/Factory | Core integrity fell below 50% 14038 | -6/Factory | Garrison activated, responded to threat 14605 | -6/Factory | Build established: Bothacker-Skirmisher 15552 | -6/Factory | Core integrity fell below 20% 15628 | -6/Factory | Identified exit to Factory 15779 | -6/Factory | Entered another Factory area 15779 | -5/Factory | Evolved 2 slots: Propulsion x1, Weapon x1 15803 | -5/Factory | Allied Derelicts emerged from ambush trap array 15873 | -5/Factory | Build established: Mutant 15958 | -5/Factory | Lost 3 allies 16026 | -5/Factory | Identified exit to DSF 16498 | -5/Factory | System corruption reached 10% 16791 | -5/Factory | Discovered new exit (range 16) 16953 | -5/Factory | Build established: Hacker-Tank 16954 | -5/Factory | Identified exit to Upper Caves 17279 | -5/Factory | First assault squad dispatched 17719 | -5/Factory | Build established: Tank 17815 | -5/Factory | Lost 7 parts (1p2n4u) 17922 | -5/Factory | Lost 5 parts (1n1u3w) 18036 | -5/Factory | Discovered new exit (range 4) 18038 | -5/Factory | Core integrity fell below 50% 18041 | -5/Factory | Entered another Factory area 18041 | -4/Factory | Evolved 2 slots: Power x1, Utility x1 18372 | -4/Factory | Sucked down chute 18372 | -4/Factory | Entered Waste 18374 | -4/Waste | Found Prototype Reactor 18375 | -4/Waste | Identified Zero-point Reactor 18387 | -4/Waste | EMP discharged 18387 | -4/Waste | System corruption reached 10% 18389 | -4/Waste | Spotted C-40 Crusher 18389 | -4/Waste | Spotted C-40 Crusher 18416 | -4/Waste | Build established: Hacker-Mutant 18441 | -4/Waste | Spotted C-40 Crusher 18455 | -4/Waste | Spotted C-40 Crusher 18458 | -4/Waste | Spotted C-40 Crusher 18468 | -4/Waste | Spotted C-40 Crusher 18487 | -4/Waste | EMP discharged 18503 | -4/Waste | Discovered new exit (range 16) 18540 | -4/Waste | Entered Factory 18575 | -4/Factory | Discovered new exit (range 5) 18825 | -4/Factory | Core integrity fell below 50% 18830 | -4/Factory | Entered Upper Caves 19062 | -4/Upper Caves | Build established: Mutant 19299 | -4/Upper Caves | Discovered new exit (range 10) 19312 | -4/Upper Caves | Entered another Upper Caves area 19343 | -4/Upper Caves | Attracted the attention of an 0b10 checkpoint 19433 | -4/Upper Caves | Discovered new exit (range 11) 19444 | -4/Upper Caves | Entered Research 19444 | -3/Research | Evolved 2 slots: Utility x2 19729 | -3/Research | Build established: Hacker-Skirmisher 19771 | -3/Research | System corruption reached 10% 19803 | -3/Research | Lost 4 parts (1n2u1w) 20146 | -3/Research | Core integrity fell below 50% 20157 | -3/Research | System corruption reached 30% 20174 | -3/Research | Lost 21 parts (2p3n7u9w) 20226 | -3/Research | Core integrity fell below 20% 20232 | -3/Research | Destroyed by S-43 Plague with Heavy Machine Gun Last Messages --------------- 20147_ Slammed into P-80 Master. 20148_ Acquired 49 matter. 20149_ System corrupted: Matter fused (-5). 20149_ Acquired 5 matter. 20151_ Slammed into P-80 Master. 20151_ Destabilizing: System corrupted (+2). 20153_ K-01 Serf collects debris. 20154_ Dropped Lrg. Storage Unit. 20184_ System corrupted: Energy discharge (-25). 20194_ ALERT: Rogue bot located, Programmers report to Research Zone 7H. 20202_ System corrupted: Component data lost. 20213_ W-44 Eye sends out distress signal. 20214_ Door malfunctions. 20214_ Hacking Suite destroyed. 20220_ System corrupted: Matter fused (-5). 20225_ Slammed into P-80 Master. 20231_ C-30 ARC bursts open, deploying its payload. 20231_ S-43 Plague unfolds itself. Map ----- +----------------------------------------------------+ | ?????????????????????????????????????????????????? | | ?????????????????????????????????????????????????? | | ?????????????????????????????????????????????????? | | ?????????????????????????????????????????????????? | | ?????????????????????????????????????????????????? | | ?????????????????????????????????????????????????? | | ?????????????????????????????????????????????????? | | ?????????????????????????????????????????????????? | | ?????????????????????????????????????????????????? | | ?????????????????????????????????????????????????? | | ?????????????????????????????????????????????????? | | ???????????????????????########??????????????????? | | ???????????????????????# !#??????????????????? | | ???????????????????????# #??????????????????? | | ???????????????????????# #??????????????????? | | ???????????????????????# #??????????????????? | | ????????????????######## #??????????????????? | | ????????????????# #? ???########????????? | | ????????????????# ####/###### #????????? | | ????????????????# + p%%%% + #????????? | | ????????????????# ####p###### #????????? | | ????????????????# #??#p#????# #????????? | | ??????????###???# #??# #????# #????????? | | ###########T #######;#+#### #????# #????????? | | w k ^ #????########????????? | | ?# Y @ #????????????????????? | | ?# #????????????????????? | | ?# s#????????????????????? | | ?# s#????????????????????? | | ?# k pk u + ??w????????????????? | | ?###### #######/###########s# ???hh????????????? | | ??????#??????? ??????????#s#? ! ????????????????? | | ????????????? ???????????# #??##??????????????? | | ????????????? ????????????#s#?????????????????? | | ??????????????????????????#"#??????????????????? | | ??????????????????????????# #???????????????????? | | ??????????????????????????# #???????????????????? | | ??????????????????????????# #????????????????????? | | ??????????????????????????# #????????????????????? | | ??????????????????????????# #????????????????????? | | ??????????????????????????# #????????????????????? | | ??????????????????????????# #??###############???? | | ??????????????????????????# #??# # #???# | | ??????????????????????????# #??# # #???# | | ??????????????????????????# #??# # #???# | | ??????????????????????????# #??# # #???# | | ??????????????????????????# #??# # ????# | | ??????????????????????????# #???? # ??????# | | ?????????????????????# #### #######+####+######### | | ?????????????????????# | +----------------------------------------------------+ Best States ------------- Heat Dissipation 86 Coolant Potential 100 Energy Generation 39 Energy Capacity 405 Matter Stores 300 Matter Capacity 300 Sight Range 16 Terrain Scan Density 10 Armor Coverage 675 Resistance: KI 20 Resistance: TH 20 Weapon Shielding 66 Evasion (%) 61 Target Analysis 6 Core Analysis 6 Recoil Reduction 7 Energy Filtering 30 Kinecelleration 30 Offensive Hacking 20 Defensive Hacking 24 Relay Coupler Types 3 Relay Coupler Value 60 Item Schematics ----------------- None Robot Schematics ------------------ None Fabricated ------------ Nothing Alien Tech Used ----------------- None Achievements -------------- None Challenges ------------ None Game ------ Seed RocketAdvancedDrive Manual? 0 Play Time 02:22:12 Cumulative 84.0 hours Start 2024.04.18 @ 00:38:34 End 2024.04.18 @ 03:05:10 Sessions 1 Manual Loads 0 Difficulty Rogue Special Mode None Game No. 76 Rogue 76 Adventurer 0 Explorer 0 Win Type - Total 0 Types 0/0/0/0/0/0/0/0/0 Lore% 42 Gallery% 53 Achievement% 33 Wizard Run 0 Options --------- Layout 1 ASCII 0 Keyboard 0 Movement Numpad Keybinds 0 Fullscreen 1 Font 24/Smallcaps Map View 50x35 Zoom Use 0% Tactical HUD 1 Map Filters NONE Filters NONE Steam 1 RUN: 2a2499c6-cccd-4a3b-bcf2-96b3bd8afce9